fUST/lending_fUST_20260127
["ID","MTS","AMOUNT","RATE_DAILY","PERIOD"]
[403678878,1769469033811,-1671.31861377,0.00015044,2]
[403678879,1769469033820,-940.11672024,0.00015115,2]
[403678880,1769469033834,-500.0,0.00015126,2]
[403678881,1769469033846,-583.25191596,0.00015126,2]
[403678882,1769469033860,-500.0,0.00015126,2]
[403678883,1769469033873,-500.0,0.00015126,2]
[403678884,1769469033886,-500.0,0.00015126,2]
[403678885,1769469033896,-500.0,0.00015126,2]
[403678886,1769469033907,-202.41865959,0.00015126,2]
[403678887,1769469033919,-150.0,0.00015126,2]
[403678888,1769469033931,-500.0,0.00015126,2]
[403678889,1769469033942,-500.0,0.00015126,2]
[403678890,1769469033954,-778.0,0.00015126,2]
[403678891,1769469033966,-150.0,0.00015126,2]
[403678892,1769469033979,-500.0,0.00015126,2]
[403678893,1769469033991,-165.01687446,0.00015126,2]
[403678894,1769469034002,-587.0,0.00015134,2]
[403678895,1769469034014,-151.0,0.000152,2]
[403678896,1769469034027,-1909.0,0.00015213,2]
[403678897,1769469034040,-500.0,0.00015263,2]
[403678898,1769469034052,-500.0,0.00015263,2]
[403678899,1769469034063,-500.0,0.00015263,2]
[403678900,1769469034075,-400.0,0.00015263,2]
[403678901,1769469034088,-500.0,0.00015263,2]
[403678902,1769469034100,-500.0,0.00015263,2]
[403678903,1769469034111,-150.0,0.00015263,2]
[403678904,1769469034122,-500.0,0.00015263,2]
[403678905,1769469034138,-778.0,0.00015263,2]
[403678906,1769469034151,-150.0,0.00015263,2]
[403678907,1769469034162,-500.0,0.00015263,2]
[403678908,1769469034175,-505.08197384,0.000153,2]
[403678909,1769469034188,-6427.67811984,0.000153,2]
[403678910,1769469034198,-1041.66666667,0.00015349,2]
[403678911,1769469034209,-500.0,0.000154,2]
[403678912,1769469034220,-500.0,0.000154,2]
[403678913,1769469034232,-500.0,0.000154,2]
[403678914,1769469034244,-500.0,0.000154,2]
[403678915,1769469034256,-500.0,0.000154,2]
[403678916,1769469034269,-231.517554,0.000154,2]
[403678917,1769469034281,-500.0,0.000154,2]
[403678918,1769469034293,-778.0,0.000154,2]
[403678919,1769469034303,-150.0,0.000154,2]
[403678920,1769469034316,-500.0,0.000154,2]
[403678921,1769469034328,-413702.96849454,0.000154,2]
[403678922,1769469034346,-838.73973918,0.000154,2]
[403678923,1769469035262,501.65562602,0.00034614,120]
[403678924,1769469035394,500.0,0.00034614,120]
[403678925,1769469036208,500.0,0.00034614,120]
[403678946,1769469037913,500.0,0.00034614,120]
[403678947,1769469037938,-217.15233878,0.00014216,2]
[403678948,1769469037949,-225.18697532,0.00014216,2]
[403678949,1769469037960,-233.51889341,0.00014216,2]
[403678950,1769469037971,-242.15909246,0.00014216,2]
[403678951,1769469037982,-500.0,0.00014216,2]
[403678952,1769469037992,-251.11897888,0.00014216,2]
[403678953,1769469038002,-500.0,0.00014216,2]
[403678954,1769469038013,-500.0,0.00014216,2]
[403678955,1769469038024,-260.4103811,0.00014216,2]
[403678956,1769469038034,-270.0455652,0.00014216,2]
[403678957,1769469038045,-500.0,0.00014216,2]
[403678958,1769469038055,-280.03725112,0.00014216,2]
[403678959,1769469038066,-500.0,0.00014216,2]
[403678960,1769469038076,-290.39862941,0.00014216,2]
[403678961,1769469038086,-500.0,0.00014216,2]
[403678962,1769469038097,-301.1433787,0.00014216,2]
[403678963,1769469038107,-500.0,0.00014216,2]
[403678964,1769469038118,-455.03303428,0.000149,2]
[403678965,1769469038129,-4956.76830714,0.000154,2]
[403678966,1769469038143,-5880.56176837,0.000154,2]
[403678967,1769469038156,-141458.00941481,0.000154,2]
[403679015,1769469040246,-500.0,0.00014216,2]
[403679017,1769469040255,-500.0,0.00014216,2]
[403679019,1769469040266,-500.0,0.00014216,2]
[403679021,1769469040275,-6665.80197051,0.000154,2]
[403679024,1769469040286,-12535.64546093,0.000154,2]
[403679026,1769469040297,-297.91888482,0.000154,2]
[403679225,1769469045910,500.0,0.00034614,120]
[403679226,1769469046019,-500.0,0.00014216,2]
[403679228,1769469046028,-500.0,0.00014216,2]
[403679230,1769469046037,-1006.6125486,0.000154,2]
[403679231,1769469046080,-166299.75942421,0.000154,2]
[403679232,1769469059725,500.0,0.00034614,120]
[403679233,1769469062706,500.0,0.00034614,120]
[403679234,1769469064379,500.0,0.00034614,120]
[403679242,1769469068466,500.0,0.00034614,120]
[403679245,1769469071679,500.0,0.00034614,120]
[403679254,1769469078420,500.0,0.00034614,120]
[403679255,1769469081332,500.0,0.00034614,120]
[403679256,1769469090246,500.0,0.00034614,120]
[403679257,1769469091594,500.0,0.00034614,120]
[403679258,1769469094015,500.0,0.00034614,120]
[403679259,1769469094286,501.14153655,0.00034614,120]
[403679260,1769469096569,500.0,0.00034614,120]
[403679262,1769469103202,500.0,0.00034614,120]
[403679265,1769469107683,500.0,0.00034614,120]
[403679267,1769469115633,500.0,0.00034614,120]
[403679268,1769469116409,500.0,0.00034614,120]
[403679271,1769469134832,500.0,0.00034614,120]
[403679272,1769469140917,500.0,0.00034614,120]
[403679273,1769469150472,500.0,0.00034614,120]
[403679346,1769469632270,-158.6,0.00013271,2]
[403679347,1769469658045,2366.89,0.00034583,120]
[403679348,1769469751671,-40.68788773,0.00013271,2]
[403679349,1769469751696,-117.91211227,0.00013271,2]
[403679354,1769469811617,-179.98386193,0.00013271,2]
[403679375,1769469813144,-295.10211849,0.00013271,2]
[403679397,1769469856612,-158.6,0.00013138,2]
[403679400,1769469902831,-158.6,0.00013138,2]
[403679418,1769469943137,-182.44755838,0.00013007,2]
[403679419,1769469946652,-158.6,0.00013007,2]
[403679426,1769469991705,-151.80242089,0.00012877,2]
[403679427,1769469998473,-212.10815751,0.00012877,2]
[403679428,1769470000657,-197.55720116,0.00012877,2]
[403679429,1769470006104,-158.6,0.00012877,2]
[403679458,1769470033153,-2376.0254984,0.00012877,2]
[403679477,1769470101951,201.98760005,0.00034584,120]
[403679495,1769470156093,-4317.79832083,0.00012748,2]
[403679496,1769470175497,-365.00167917,0.00012748,2]
[403679527,1769470231893,-195.30212998,0.00013205,2]
[403679528,1769470231902,-183.0,0.00013272,2]
[403679529,1769470231912,-300.0,0.00013272,2]
[403679530,1769470231924,-500.0,0.00013273,2]
[403679531,1769470231933,-500.0,0.00013273,2]
[403679532,1769470231943,-500.0,0.00013273,2]
[403679533,1769470231953,-504.66008898,0.00013273,2]
[403679534,1769470231962,-500.0,0.00013273,2]
[403679535,1769470231971,-6245.89397338,0.00013273,2]
[403679536,1769470231980,-173.88204571,0.00013273,2]
[403679537,1769470231990,-500.0,0.00013273,2]
[403679538,1769470232003,-500.0,0.00013273,2]
[403679539,1769470232012,-500.0,0.00013273,2]
[403679540,1769470232021,-300.0,0.00013673,2]
[403679541,1769470232031,-500.0,0.00013698,2]
[403679542,1769470232040,-500.0,0.00013699,2]
[403679543,1769470232050,-500.0,0.00013699,2]
[403679544,1769470232059,-261.05286874,0.00013699,2]
[403679545,1769470232068,-500.0,0.00013699,2]
[403679546,1769470232077,-500.0,0.00013699,2]
[403679547,1769470232087,-500.0,0.00013699,2]
[403679548,1769470232098,-500.0,0.00013821,2]
[403679549,1769470232108,-588.86546232,0.00013821,2]
[403679550,1769470232117,-1000.0,0.00013821,2]
[403679551,1769470232126,-1000.0,0.00013821,2]
[403679552,1769470232135,-500.0,0.00013821,2]
[403679553,1769470232145,-1000.0,0.00013821,2]
[403679554,1769470232154,-1000.0,0.00013821,2]
[403679555,1769470232163,-1000.0,0.00013973,2]
[403679556,1769470232172,-338.60245616,0.00014247,2]
[403679557,1769470232182,-500.0,0.00014247,2]
[403679558,1769470232191,-1000.0,0.00014247,2]
[403679559,1769470232200,-500.0,0.00014247,2]
[403679560,1769470232209,-1198.53768572,0.00014368,2]
[403679561,1769470232219,-201.93286099,0.00014414,2]
[403679562,1769470232228,-209.40437684,0.00014414,2]
[403679563,1769470232237,-326.87004798,0.00014414,2]
[403679564,1769470232246,-553.64373807,0.00014414,2]
[403679565,1769470232255,-628.77744007,0.00014414,2]
[403679566,1769470232265,-151.0,0.00014414,2]
[403679567,1769470232274,-217.5974834,0.00014416,2]
[403679568,1769470232284,-378.0985263,0.000145,2]
[403679569,1769470232293,-420.0,0.00014551,2]
[403679570,1769470232302,-500.0,0.0001463,2]
[403679571,1769470232312,-800.0,0.00014677,2]
[403679572,1769470232322,-944.36900266,0.00014704,2]
[403679573,1769470232333,-800.0,0.00014764,2]
[403679574,1769470232343,-1500.0,0.00014795,2]
[403679575,1769470232352,-800.0,0.00014875,2]
[403679576,1769470232363,-800.0,0.00014881,2]
[403679577,1769470232372,-800.0,0.00014884,2]
[403679578,1769470232381,-303.3553562,0.000149,2]
[403679579,1769470232390,-303.35535618,0.000149,2]
[403679580,1769470232399,-600.0,0.00014947,2]
[403679581,1769470232407,-554.37463321,0.00014962,2]
[403679582,1769470232416,-500.0,0.00014989,2]
[403679583,1769470232427,-500.0,0.00014989,2]
[403679584,1769470232435,-433.21665824,0.00014989,2]
[403679585,1769470232444,-500.0,0.00014989,2]
[403679586,1769470232453,-500.0,0.00014989,2]
[403679587,1769470232462,-500.0,0.00014989,2]
[403679588,1769470232472,-500.0,0.00014989,2]
[403679589,1769470232481,-500.0,0.00014989,2]
[403679590,1769470232491,-500.0,0.00014989,2]
[403679591,1769470232499,-500.0,0.00014989,2]
[403679592,1769470232508,-500.0,0.00014989,2]
[403679593,1769470232517,-500.0,0.00014989,2]
[403679594,1769470232526,-500.0,0.00014989,2]
[403679595,1769470232536,-462.90613255,0.00014989,2]
[403679596,1769470232550,-500.0,0.00014989,2]
[403679597,1769470232559,-500.0,0.00014989,2]
[403679598,1769470232569,-500.0,0.00014989,2]
[403679599,1769470232579,-500.0,0.00014989,2]
[403679600,1769470232588,-500.0,0.00014989,2]
[403679601,1769470232599,-500.0,0.00014989,2]
[403679602,1769470232608,-500.0,0.00014989,2]
[403679603,1769470232619,-155.24958856,0.00014989,2]
[403679604,1769470232628,-500.0,0.00014989,2]
[403679605,1769470232639,-163.47720344,0.00014989,2]
[403679606,1769470232650,-500.0,0.00014989,2]
[403679607,1769470232660,-500.0,0.00014989,2]
[403679608,1769470232672,-500.0,0.00014989,2]
[403679609,1769470232682,-500.0,0.00014989,2]
[403679610,1769470232691,-500.0,0.00014989,2]
[403679611,1769470232700,-500.0,0.00014989,2]
[403679612,1769470232880,-500.0,0.00014989,2]
[403679613,1769470232890,-500.0,0.00014989,2]
[403679614,1769470232900,-500.0,0.00014989,2]
[403679615,1769470232909,-500.0,0.00014989,2]
[403679616,1769470232918,-500.0,0.00014989,2]
[403679617,1769470232928,-500.0,0.00014989,2]
[403679618,1769470232937,-500.0,0.00014989,2]
[403679619,1769470232946,-500.0,0.00014989,2]
[403679620,1769470232955,-500.0,0.00014989,2]
[403679621,1769470232964,-500.0,0.00014989,2]
[403679622,1769470232973,-500.0,0.00014989,2]
[403679623,1769470232982,-500.0,0.00014989,2]
[403679624,1769470232991,-500.0,0.00014989,2]
[403679625,1769470233000,-500.0,0.00014989,2]
[403679626,1769470233009,-500.0,0.00014989,2]
[403679627,1769470233019,-500.0,0.00014989,2]
[403679628,1769470233028,-500.0,0.00014989,2]
[403679629,1769470233037,-500.0,0.00014989,2]
[403679630,1769470233046,-500.0,0.00014989,2]
[403679631,1769470233055,-500.0,0.00014989,2]
[403679632,1769470233066,-500.0,0.00014989,2]
[403679633,1769470233075,-500.0,0.00014989,2]
[403679634,1769470233085,-500.0,0.00014989,2]
[403679635,1769470233095,-500.0,0.00014989,2]
[403679636,1769470233104,-500.0,0.00014989,2]
[403679637,1769470233113,-500.0,0.00014989,2]
[403679638,1769470233123,-500.0,0.00014989,2]
[403679639,1769470233132,-500.0,0.00014989,2]
[403679640,1769470233141,-89465.37782288,0.0001499,2]
[403679641,1769470233150,-153.0,0.00015,2]
[403679642,1769470233159,-200.0,0.00015053,2]
[403679643,1769470233168,-253.14041224,0.00015126,2]
[403679644,1769470233177,-649.0,0.00015126,2]
[403679645,1769470233186,-500.0,0.00015126,2]
[403679646,1769470233195,-500.0,0.00015126,2]
[403679647,1769470233204,-500.0,0.00015126,2]
[403679648,1769470233213,-500.0,0.00015126,2]
[403679649,1769470233222,-500.0,0.00015126,2]
[403679650,1769470233231,-150.0,0.00015126,2]
[403679651,1769470233240,-500.0,0.00015126,2]
[403679652,1769470233249,-800.0,0.00015145,2]
[403679653,1769470233257,-2150.0,0.00015177,2]
[403679654,1769470233267,-418.0,0.00015177,2]
[403679655,1769470233276,-179.0,0.00015177,2]
[403679656,1769470233286,-635.76297057,0.000152,2]
[403679657,1769470233295,-1144.37334702,0.000152,2]
[403679658,1769470233304,-2034.44150581,0.000152,2]
[403679659,1769470233313,-230.45651337,0.00015205,2]
[403679660,1769470233322,-649.0,0.00015263,2]
[403679661,1769470233331,-500.0,0.00015263,2]
[403679662,1769470233340,-500.0,0.00015263,2]
[403679663,1769470233349,-600.0,0.00015263,2]
[403679664,1769470233358,-500.0,0.00015263,2]
[403679665,1769470233367,-500.0,0.00015263,2]
[403679666,1769470233376,-150.0,0.00015263,2]
[403679667,1769470233386,-500.0,0.00015263,2]
[403679668,1769470233395,-262.14679154,0.00015299,2]
[403679669,1769470233404,-229.12156976,0.000153,2]
[403679670,1769470233414,-487.0,0.000153,2]
[403679671,1769470233423,-487.0,0.000153,2]
[403679672,1769470233433,-487.0,0.000153,2]
[403679673,1769470233442,-487.0,0.000153,2]
[403679674,1769470233451,-538.55,0.000153,2]
[403679675,1769470233460,-2000.0,0.00015342,2]
[403679676,1769470233470,-9371.0153153,0.00015382,2]
[403679677,1769470233480,-649.0,0.000154,2]
[403679678,1769470233489,-392.32533773,0.000154,2]
[403679679,1769470233502,-107.67466227,0.000154,2]
[403679680,1769470233512,-500.0,0.000154,2]
[403679681,1769470233521,-500.0,0.000154,2]
[403679682,1769470233530,-59.8109324,0.000154,2]
[403679683,1769470233638,-81.65147887,0.000154,2]
[403679684,1769470233650,-358.53758873,0.000154,2]
[403679685,1769470233659,-163.75099845,0.000154,2]
[403679686,1769470233669,-500.0,0.000154,2]
[403679687,1769470233678,-977.71141282,0.000154,2]
[403679688,1769470233689,-7029.80187901,0.000154,2]
[403679712,1769470238360,-1037.8065406,0.00013367,2]
[403679713,1769470238370,-3.86012607,0.00013367,2]
[403679714,1769470238380,-555.95931308,0.00014414,2]
[403679715,1769470238389,-303.35535618,0.000149,2]
[403679716,1769470238399,-18927.34399308,0.000154,2]
[403679717,1769470238410,-21949.52539037,0.000154,2]
[403679718,1769470238421,-2698.83739219,0.000154,2]
[403679719,1769470238436,-772.04249589,0.000154,2]
[403679720,1769470238446,-1023.73570649,0.000154,2]
[403679721,1769470238457,-526.80861021,0.000154,2]
[403679722,1769470238468,-2571.65123819,0.000154,2]
[403679723,1769470238479,-355.81467659,0.000154,2]
[403680106,1769470246251,-337.2,0.000154,2]
[403680107,1769470246312,-6245.89397338,0.000154,2]
[403680138,1769470324639,1023.0,0.00034586,120]
[403680180,1769470395799,588.47179542,0.00034586,120]
[403680213,1769470547845,460.4925052,0.00034585,120]
[403680214,1769470548257,460.4925052,0.00034585,120]
[403680215,1769470548661,460.4925052,0.00034585,120]
[403680216,1769470549003,460.4925052,0.00034585,120]
[403680217,1769470549349,460.4925052,0.00034585,120]
[403680218,1769470549740,460.4925052,0.00034585,120]
[403680219,1769470550126,460.4925052,0.00034585,120]
[403680220,1769470550508,460.4925052,0.00034585,120]
[403680221,1769470551209,460.4925052,0.00034585,120]
[403680222,1769470551266,460.4925052,0.00034585,120]
[403680223,1769470551648,460.4925052,0.00034585,120]
[403680224,1769470551988,460.4925052,0.00034585,120]
[403680225,1769470552608,460.4925052,0.00034585,120]
[403680226,1769470553041,460.4925052,0.00034585,120]
[403680230,1769470667878,153.49750172,0.00034585,120]
[403680231,1769470668868,153.49750172,0.00034585,120]
[403680232,1769470669304,153.49750172,0.00034585,120]
[403680236,1769470719623,500.0,0.00034585,120]
[403680237,1769470725680,500.0,0.00034585,120]
[403680253,1769470907722,-275.16290434,0.00012872,2]
[403680256,1769470910354,-210.09255411,0.00012872,2]
[403680258,1769470913129,-56.58744589,0.00012872,2]
[403680259,1769470913151,-118.03207255,0.00012872,2]
[403680260,1769470917772,-394.97135853,0.00012872,2]
[403680261,1769470923277,3199.18242451,0.0003,120]
[403680272,1769470952169,-158.05,0.00012742,2]
[403680273,1769470952193,-55.65026485,0.00012871,2]
[403680279,1769470965730,558.0,0.00034585,120]
[403680441,1769471187000,1500.0,0.00034585,120]
[403680442,1769471228113,-300.0,0.00012871,2]
[403680443,1769471228132,-644.00952162,0.00012872,2]
[403680446,1769471238132,-316.90904962,0.00012872,2]
[403680447,1769471241822,500.0,0.00034585,120]
[403680448,1769471242068,318.40182992,0.00034585,120]
[403680538,1769471432124,-300.0,0.00012871,2]
[403680540,1769471432133,-602.0,0.00012872,2]
[403680541,1769471432143,-3739.47101605,0.00012872,2]
[403680542,1769471432157,-1326.0,0.00012872,2]
[403680543,1769471432168,-22726.95327989,0.00012872,2]
[403680544,1769471432177,-204.20763344,0.00012954,2]
[403680545,1769471432186,-384.11,0.000132,2]
[403680547,1769471432195,-500.0,0.00013273,2]
[403680549,1769471432204,-1041.66666667,0.00013558,2]
[403680551,1769471432213,-1837.0,0.00013561,6]
[403680553,1769471432222,-300.0,0.00013673,2]
[403680554,1769471432231,-1000.0,0.00013821,2]
[403680555,1769471432240,-159.62665952,0.00013872,2]
[403680556,1769471432249,-1000.0,0.00013916,2]
[403680557,1769471432258,-15690.03656896,0.00013916,2]
[403680567,1769471438361,-539.02285967,0.00013916,2]
[403680568,1769471438371,-420.0,0.00014117,2]
[403680569,1769471438380,-4778.9780774,0.00014207,2]
[403680570,1769471438392,-16053.1940855,0.00014207,2]
[403680571,1769471438401,-315.39350161,0.00014221,2]
[403680572,1769471438411,-376.4651815,0.00014594,2]
[403680573,1769471438421,-872.9254026,0.00014716,2]
[403680574,1769471438430,-800.0,0.00014732,2]
[403680575,1769471438439,-418.0,0.00014817,2]
[403680576,1769471438449,-179.0,0.00014817,2]
[403680577,1769471438458,-240.96500746,0.00014954,2]
[403680578,1769471438467,-586.888393,0.00015068,2]
[403680579,1769471438477,-466.0,0.00015075,2]
[403680580,1769471438486,-500.0,0.00015126,2]
[403680581,1769471438495,-150.0,0.00015126,2]
[403680582,1769471438505,-568.0,0.00015126,2]
[403680583,1769471438514,-500.0,0.00015126,2]
[403680584,1769471438523,-150.0,0.00015126,2]
[403680585,1769471438533,-500.0,0.00015126,2]
[403680586,1769471438542,-168.0,0.00015147,2]
[403680587,1769471438552,-466.0,0.00015226,2]
[403680588,1769471438561,-500.0,0.00015262,2]
[403680589,1769471438571,-500.0,0.00015262,2]
[403680590,1769471438580,-585.84356832,0.00015262,2]
[403680591,1769471438590,-539.73320793,0.00015262,2]
[403680592,1769471438599,-500.0,0.00015262,2]
[403680593,1769471438608,-500.0,0.00015262,2]
[403680594,1769471438617,-500.0,0.00015262,2]
[403680595,1769471438627,-500.0,0.00015262,2]
[403680596,1769471438636,-307.79346763,0.00015262,2]
[403680597,1769471438645,-240.38635594,0.00015262,2]
[403680598,1769471438655,-500.0,0.00015262,2]
[403680599,1769471438664,-500.0,0.00015262,2]
[403680600,1769471438673,-500.0,0.00015262,2]
[403680601,1769471438683,-165.52495886,0.00015262,2]
[403680602,1769471438691,-356.64975665,0.00015262,2]
[403680603,1769471438700,-500.0,0.00015262,2]
[403680604,1769471438709,-500.0,0.00015262,2]
[403680605,1769471438718,-500.0,0.00015262,2]
[403680606,1769471438728,-500.0,0.00015262,2]
[403680607,1769471438737,-500.0,0.00015262,2]
[403680608,1769471438746,-500.0,0.00015262,2]
[403680609,1769471438756,-500.0,0.00015262,2]
[403680610,1769471438765,-500.0,0.00015262,2]
[403680611,1769471438775,-500.0,0.00015262,2]
[403680612,1769471438784,-500.0,0.00015262,2]
[403680613,1769471438793,-500.0,0.00015262,2]
[403680614,1769471438803,-500.0,0.00015263,2]
[403680615,1769471438812,-209.14030444,0.00015263,2]
[403680616,1769471438822,-568.0,0.00015263,2]
[403680617,1769471438831,-500.0,0.00015263,2]
[403680618,1769471438840,-209.82580381,0.00015263,2]
[403680619,1769471438850,-500.0,0.00015263,2]
[403680620,1769471438859,-3178.81485283,0.00015263,2]
[403680621,1769471438868,-402.99853183,0.00015299,2]
[403680622,1769471438878,-183.50275408,0.00015299,2]
[403680623,1769471438887,-487.0,0.000153,2]
[403680624,1769471438897,-951.05,0.000153,2]
[403680625,1769471438909,-2185.22,0.00015342,2]
[403680626,1769471438919,-466.0,0.00015362,2]
[403680627,1769471438929,-250.0,0.000154,2]
[403680628,1769471438938,-568.0,0.000154,2]
[403680629,1769471438947,-500.0,0.000154,2]
[403680630,1769471438958,-500.0,0.000154,2]
[403680631,1769471438967,-27526.30868441,0.000154,2]
[403680636,1769471440557,-11921.2033335,0.000154,2]
[403680637,1769471440567,-14656.0357065,0.000154,2]
[403680638,1769471440578,-1449.4653215,0.000154,2]
[403680639,1769471440761,-3e-08,0.000154,2]
[403680640,1769471440773,-1996.3313089,0.000154,2]
[403680648,1769471443449,-498.90421279,0.000154,2]
[403680649,1769471443460,-3389.99999911,0.000154,2]
[403680686,1769471446520,-3138.077623,0.00015342,2]
[403680687,1769471446559,-5769.312377,0.00015342,2]
[403680688,1769471446569,-282.09897229,0.00015399,2]
[403680689,1769471446578,-1004.37904376,0.000154,2]
[403680716,1769471475636,500.0,0.00034586,120]
[403680717,1769471477911,500.0,0.00034586,120]
[403680718,1769471490572,500.0,0.00034586,120]
[403680719,1769471495700,581.36965329,0.00034586,120]
[403680720,1769471507576,500.0,0.00034586,120]
[403680721,1769471512630,500.0,0.00034586,120]
[403680722,1769471517067,500.0,0.00034586,120]
[403680723,1769471517314,187.63,0.00034586,120]
[403680724,1769471517504,500.0,0.00034586,120]
[403680725,1769471519882,500.0,0.00034586,120]
[403680727,1769471683262,500.0,0.00034578,120]
[403680728,1769471713887,500.0,0.00034578,120]
[403680731,1769471739866,522.19826611,0.00034578,120]
[403680735,1769471779858,500.0,0.00034578,120]
[403680736,1769471806268,500.0,0.00034578,120]
[403680737,1769471806501,500.0,0.00034578,120]
[403680738,1769471814234,500.0,0.00034578,120]
[403680742,1769471881399,500.0,0.00034578,120]
[403680745,1769472010235,500.0,0.00034578,120]
[403680750,1769472065874,500.0,0.00034578,120]
[403680757,1769472194185,484.65495265,0.00034582,120]
[403680758,1769472208871,500.0,0.00034582,120]
[403680759,1769472220446,500.0,0.00034582,120]
[403680760,1769472221921,500.0,0.00034582,120]
[403680761,1769472227479,500.0,0.00034582,120]
[403680762,1769472294962,500.0,0.00034582,120]
[403680763,1769472296206,500.0,0.00034582,120]
[403680767,1769472313738,500.0,0.00034582,120]
[403680768,1769472317295,500.0,0.00034582,120]
[403680769,1769472321417,500.0,0.00034582,120]
[403680770,1769472326744,152.73729102,0.00034582,120]
[403680771,1769472331052,499.99999997,0.00034582,120]
[403680772,1769472331676,500.0,0.00034582,120]
[403680773,1769472333446,500.0,0.00034582,120]
[403680774,1769472336906,500.0,0.00034582,120]
[403680775,1769472338745,500.0,0.00034582,120]
[403680776,1769472340092,500.0,0.00034582,120]
[403680777,1769472340339,423.2,0.00034582,120]
[403680778,1769472345148,500.0,0.00034582,120]
[403680779,1769472377678,500.0,0.00034582,120]
[403680780,1769472378687,500.0,0.00034582,120]
[403680781,1769472378796,335.59,0.00034582,120]
[403680782,1769472379543,500.0,0.00034582,120]
[403680783,1769472384338,500.0,0.00034582,120]
[403680784,1769472384630,509.04,0.00034582,120]
[403680785,1769472391851,500.0,0.00034582,120]
[403680786,1769472400577,500.0,0.00034582,120]
[403680789,1769472434156,-213.344,0.00012517,2]
[403680790,1769472434181,-198.51483671,0.00012644,2]
[403680791,1769472434205,-675.0,0.0001277,2]
[403680792,1769472434229,-300.0,0.0001277,2]
[403680793,1769472434253,-601.0,0.00012771,2]
[403680794,1769472434276,-300.0,0.00012771,2]
[403680795,1769472434299,-300.0,0.00012771,2]
[403680796,1769472434323,-530.59509165,0.00012771,2]
[403680962,1769472558138,-300.0,0.00012771,2]
[403680964,1769472558160,-194.54453997,0.00012771,2]
[403680965,1769472558188,-64.58821464,0.00012771,2]
[403680966,1769472558214,-407.28055098,0.00012771,2]
[403680967,1769472558238,-285.53081751,0.00012771,2]
[403680968,1769472558265,-389927.58674945,0.00012772,2]
[403681014,1769472632318,-1496.8897785,0.00012889,2]
[403681015,1769472632329,-440.41335325,0.00012889,2]
[403681016,1769472632340,-674.76220887,0.00012889,2]
[403681017,1769472632359,-643.77140468,0.00012889,2]
[403681018,1769472632369,-304.90706963,0.00012889,2]
[403681019,1769472632380,-1439.25618507,0.00012889,2]
[403681020,1769472632390,-250.0,0.00013019,2]
[403681021,1769472632399,-899.0,0.00013019,2]
[403681023,1769472632408,-3047.47610276,0.0001302,2]
[403681066,1769472638544,-7634.95212254,0.0001302,2]
[403681067,1769472638556,-9506.1488814,0.0001302,2]
[403681068,1769472638566,-600.0,0.00013027,2]
[403681069,1769472638575,-157.3122286,0.0001306,2]
[403681070,1769472638584,-1041.66666667,0.00013369,2]
[403681071,1769472638594,-500.0,0.00013699,2]
[403681072,1769472638605,-166.66666668,0.00013812,2]
[403681073,1769472638614,-27876.63981403,0.00013812,2]
[403681074,1769472638623,-830.02435315,0.00014247,2]